fUSD/lending_fUSD_20250716
["ID","MTS","AMOUNT","RATE_DAILY","PERIOD"]
[372486519,1752660675026,-1545.85,0.00022054,2]
[372486520,1752660675035,-460.0,0.00022054,2]
[372486521,1752660675045,-3511.97,0.00022054,2]
[372486522,1752660675054,-1315.57,0.00022054,2]
[372486523,1752660675064,-1016.77,0.00022054,2]
[372486524,1752660675074,-741.63,0.00022054,2]
[372486525,1752660675085,-460.0,0.00022054,2]
[372486526,1752660675096,-460.0,0.00022054,2]
[372486527,1752660675106,-903.2,0.00022054,2]
[372486528,1752660675115,-958.58,0.00022054,2]
[372486529,1752660675125,-460.0,0.00022054,2]
[372486530,1752660675135,-460.0,0.00022054,2]
[372486531,1752660675146,-2014.06,0.00022054,2]
[372486532,1752660675157,-460.0,0.00022054,2]
[372486533,1752660675168,-460.0,0.00022054,2]
[372486534,1752660675179,-675.31,0.00022054,2]
[372486535,1752660675189,-460.0,0.00022054,2]
[372486536,1752660675199,-3142.65,0.00022054,2]
[372486537,1752660675209,-529.01,0.00022054,2]
[372486538,1752660675219,-854.59,0.00022054,2]
[372486539,1752660675229,-472.31,0.00022054,2]
[372486540,1752660675239,-1002.26,0.00022054,2]
[372486541,1752660675249,-1103.09,0.00022054,2]
[372486542,1752660675259,-460.0,0.00022054,2]
[372486543,1752660675270,-460.0,0.00022054,2]
[372486544,1752660675281,-460.0,0.00022054,2]
[372486545,1752660675291,-151.0,0.00022054,7]
[372486546,1752660675301,-151.0,0.00022054,7]
[372486547,1752660675311,-151.0,0.00022054,7]
[372486548,1752660675320,-578.14320143,0.00022054,2]
[372486549,1752660675330,-151.0,0.00022054,7]
[372486550,1752660675340,-460.0,0.00022054,2]
[372486551,1752660675350,-460.0,0.00022054,2]
[372486552,1752660675360,-991.07,0.00022054,2]
[372486553,1752660675370,-577.12,0.00022054,2]
[372486554,1752660675379,-470.77120689,0.00022054,2]
[372486555,1752660675389,-461.11225935,0.00022054,2]
[372486556,1752660675399,-666.89,0.00022054,2]
[372486557,1752660675409,-1605.17,0.00022054,2]
[372486558,1752660675419,-983.2,0.00022054,2]
[372486559,1752660675431,-506.41,0.00022054,2]
[372486560,1752660675440,-1307.88,0.00022054,2]
[372486561,1752660675450,-460.0,0.00022054,2]
[372486562,1752660675459,-460.0,0.00022054,2]
[372486563,1752660675469,-2347.04,0.00022054,2]
[372486564,1752660675480,-460.0,0.00022054,2]
[372486565,1752660675490,-460.0,0.00022054,2]
[372486566,1752660675499,-460.0,0.00022054,2]
[372486567,1752660675511,-1617.6,0.00022054,2]
[372486568,1752660675520,-574.06,0.00022054,2]
[372486569,1752660675530,-460.0,0.00022054,2]
[372486570,1752660675539,-523.92,0.00022054,2]
[372486571,1752660675549,-1085.37,0.00022054,2]
[372486572,1752660675559,-460.0,0.00022054,2]
[372486573,1752660675568,-1042.33,0.00022054,2]
[372486574,1752660675578,-470.87956027,0.00022054,2]
[372486575,1752660675587,-460.0,0.00022054,2]
[372486576,1752660675597,-2132.04,0.00022054,2]
[372486577,1752660675607,-2438.36,0.00022054,2]
[372486578,1752660675616,-460.0,0.00022054,2]
[372486579,1752660675626,-1258.24,0.00022054,2]
[372486580,1752660675636,-3710.74,0.00022054,2]
[372486581,1752660675646,-460.0,0.00022054,2]
[372486582,1752660675655,-487.26,0.00022054,2]
[372486583,1752660675665,-625.5,0.00022054,2]
[372486584,1752660675675,-460.0,0.00022054,2]
[372486585,1752660675684,-460.0,0.00022054,2]
[372486586,1752660675693,-866.77,0.00022054,2]
[372486587,1752660675703,-460.0,0.00022054,2]
[372486588,1752660675713,-2035.1,0.00022054,2]
[372486589,1752660675722,-460.0,0.00022054,2]
[372486590,1752660675732,-785.47,0.00022054,2]
[372486591,1752660675742,-3332.87,0.00022054,2]
[372486592,1752660675751,-462.34735879,0.00022054,2]
[372486593,1752660675761,-460.0,0.00022054,2]
[372486594,1752660675771,-460.0,0.00022054,2]
[372486595,1752660675780,-1185.75,0.00022054,2]
[372486596,1752660675789,-460.0,0.00022054,2]
[372486597,1752660675799,-839.47,0.00022054,2]
[372486598,1752660675808,-460.0,0.00022054,2]
[372486599,1752660675818,-460.0,0.00022054,2]
[372486600,1752660675827,-460.0,0.00022054,2]
[372486601,1752660675837,-5352.93,0.00022054,2]
[372486602,1752660675846,-1500.0,0.00022054,14]
[372486603,1752660675855,-7047.9,0.00022054,2]
[372486604,1752660675865,-1500.0,0.00022054,14]
[372486605,1752660675875,-460.0,0.00022054,2]
[372486606,1752660675884,-1500.0,0.00022054,14]
[372486607,1752660675893,-460.0,0.00022054,2]
[372486608,1752660675903,-1500.0,0.00022054,14]
[372486609,1752660675913,-1886.37,0.00022054,2]
[372486610,1752660675924,-1500.0,0.00022054,14]
[372486611,1752660675935,-1500.0,0.00022054,14]
[372486612,1752660675945,-1500.0,0.00022054,14]
[372486613,1752660675955,-460.0,0.00022054,2]
[372486614,1752660675965,-1500.0,0.00022054,14]
[372486615,1752660675974,-1500.0,0.00022054,14]
[372486616,1752660675984,-460.0,0.00022054,2]
[372486617,1752660675994,-1500.0,0.00022054,14]
[372486618,1752660676004,-1500.0,0.00022054,14]
[372486619,1752660676013,-1500.0,0.00022054,14]
[372486620,1752660676023,-739.43,0.00022054,2]
[372486621,1752660676033,-1500.0,0.00022054,14]
[372486622,1752660676042,-1500.0,0.00022054,14]
[372486623,1752660676052,-1500.0,0.00022054,14]
[372486624,1752660676062,-204.90988496,0.00022054,2]
[372486625,1752660676072,-1532.876172,0.00022054,14]
[372486626,1752660676082,-460.0,0.00022054,2]
[372486627,1752660676092,-1015.45,0.00022054,2]
[372486628,1752660676102,-460.0,0.00022054,2]
[372486629,1752660676111,-164.135107,0.00022054,7]
[372486630,1752660676121,-1668.06,0.00022054,2]
[372486631,1752660676132,-164.135107,0.00022054,7]
[372486632,1752660676143,-164.135107,0.00022054,7]
[372486633,1752660676154,-151.0,0.00022054,7]
[372486634,1752660676165,-992.64,0.00022054,2]
[372486635,1752660676176,-164.135107,0.00022054,7]
[372486636,1752660676186,-151.0,0.00022054,7]
[372486637,1752660676196,-288.498733,0.00022054,7]
[372486638,1752660676207,-845.34,0.00022054,2]
[372486639,1752660676216,-2581.72,0.00022054,2]
[372486640,1752660676227,-508.68293681,0.00022054,2]
[372486641,1752660676236,-1035.87,0.00022054,2]
[372486642,1752660676246,-164.135107,0.00022054,7]
[372486643,1752660676256,-460.0,0.00022054,2]
[372486644,1752660676268,-164.135107,0.00022054,7]
[372486645,1752660676278,-164.135107,0.00022054,7]
[372486646,1752660676289,-164.135107,0.00022054,7]
[372486647,1752660676300,-460.0,0.00022054,2]
[372486648,1752660676309,-460.0,0.00022054,2]
[372486649,1752660676318,-7353.76,0.00022054,2]
[372486650,1752660676328,-460.0,0.00022054,2]
[372486651,1752660676339,-511.15,0.00022054,2]
[372486652,1752660676349,-460.0,0.00022054,2]
[372486653,1752660676357,-460.0,0.00022054,2]
[372486654,1752660676366,-460.0,0.00022054,2]
[372486655,1752660676377,-956.44,0.00022054,2]
[372486656,1752660676390,-460.0,0.00022054,2]
[372486657,1752660676401,-460.0,0.00022054,2]
[372486658,1752660676410,-1265.22,0.00022054,2]
[372486659,1752660676423,-752.69,0.00022054,2]
[372486660,1752660676433,-2006.99,0.00022054,2]
[372486661,1752660676442,-465.83195954,0.00022054,2]
[372486662,1752660676452,-460.0,0.00022054,2]
[372486663,1752660676462,-460.0,0.00022054,2]
[372486664,1752660676473,-334.948153,0.00022054,7]
[372486665,1752660676483,-334.948153,0.00022054,7]
[372486666,1752660676494,-2135.49,0.00022054,2]
[372486667,1752660676507,-460.0,0.00022054,2]
[372486668,1752660676516,-460.0,0.00022054,2]
[372486669,1752660676526,-460.0,0.00022054,2]
[372486670,1752660676535,-334.948153,0.00022054,7]
[372486671,1752660676543,-334.948153,0.00022054,7]
[372486672,1752660676554,-460.0,0.00022054,2]
[372486673,1752660676566,-1072.87,0.00022054,2]
[372486674,1752660676576,-151.0,0.00022054,7]
[372486675,1752660676586,-334.948153,0.00022054,7]
[372486676,1752660676595,-460.0,0.00022054,2]
[372486677,1752660676604,-151.0,0.00022054,7]
[372486678,1752660676614,-460.0,0.00022054,2]
[372486679,1752660676623,-334.948153,0.00022054,7]
[372486680,1752660676632,-460.0,0.00022054,2]
[372486681,1752660676641,-334.948153,0.00022054,7]
[372486682,1752660676650,-151.0,0.00022054,7]
[372486683,1752660676659,-334.948153,0.00022054,7]
[372486684,1752660676669,-151.0,0.00022054,7]
[372486685,1752660676678,-802.92,0.00022054,2]
[372486686,1752660676687,-460.0,0.00022054,2]
[372486687,1752660676696,-1012.13,0.00022054,2]
[372486688,1752660676705,-1500.36,0.00022054,2]
[372486689,1752660676714,-1943.02,0.00022054,2]
[372486690,1752660676724,-460.0,0.00022054,2]
[372486691,1752660676733,-460.0,0.00022054,2]
[372486692,1752660676743,-413.77548305,0.00022054,2]
[372486693,1752660676752,-1357.0,0.00022054,2]
[372486694,1752660676761,-797.62,0.00022054,2]
[372486695,1752660676771,-460.0,0.00022054,2]
[372486696,1752660676780,-460.0,0.00022054,2]
[372486697,1752660676789,-460.0,0.00022054,2]
[372486698,1752660676798,-460.0,0.00022054,2]
[372486699,1752660676808,-460.0,0.00022054,2]
[372486700,1752660676817,-460.0,0.00022054,2]
[372486701,1752660676826,-2736.49,0.00022054,2]
[372486702,1752660676835,-460.0,0.00022054,2]
[372486703,1752660676845,-763.04,0.00022054,2]
[372486704,1752660676854,-189.494592,0.00022054,7]
[372486705,1752660676863,-603.92877468,0.00022054,2]
[372486706,1752660676873,-313.201703,0.00022054,7]
[372486707,1752660676882,-1308.06,0.00022054,2]
[372486708,1752660676891,-189.494592,0.00022054,7]
[372486709,1752660676901,-313.201703,0.00022054,7]
[372486710,1752660676910,-910.0,0.00022054,2]
[372486711,1752660676919,-4317.42,0.00022054,2]
[372486712,1752660676929,-460.0,0.00022054,2]
[372486713,1752660676938,-189.494592,0.00022054,7]
[372486714,1752660676948,-313.201703,0.00022054,7]
[372486715,1752660676957,-460.0,0.00022054,2]
[372486716,1752660676966,-313.201703,0.00022054,7]
[372486717,1752660676976,-932.41,0.00022054,2]
[372486718,1752660676985,-7819.85,0.00022054,2]
[372486719,1752660676994,-189.494592,0.00022054,7]
[372486720,1752660677003,-571.05,0.00022054,2]
[372486721,1752660677013,-460.0,0.00022054,2]
[372486722,1752660677022,-460.0,0.00022054,2]
[372486723,1752660677031,-466.66,0.00022054,2]
[372486724,1752660677040,-1020.98,0.00022054,2]
[372486725,1752660677050,-313.201703,0.00022054,7]
[372486726,1752660677059,-313.201703,0.00022054,7]
[372486727,1752660677068,-460.0,0.00022054,2]
[372486728,1752660677078,-189.494592,0.00022054,7]
[372486729,1752660677087,-313.201703,0.00022054,7]
[372486730,1752660677097,-851.31,0.00022054,2]
[372486731,1752660677106,-189.494592,0.00022054,7]
[372486732,1752660677115,-10002.5,0.00022054,2]
[372486733,1752660677124,-313.201703,0.00022054,7]
[372486734,1752660677133,-189.494592,0.00022054,7]
[372486735,1752660677142,-460.0,0.00022054,2]
[372486736,1752660677151,-189.494592,0.00022054,7]
[372486737,1752660677159,-1424.15,0.00022054,2]
[372486738,1752660677169,-18355.92,0.00022054,2]
[372486739,1752660677178,-1670.87,0.00022054,2]
[372486740,1752660677188,-892.348443,0.00022054,7]
[372486741,1752660677197,-1968.26,0.00022054,2]
[372486742,1752660677207,-156.478533,0.00022054,7]
[372486743,1752660677217,-892.348443,0.00022054,7]
[372486744,1752660677226,-892.348443,0.00022054,7]
[372486745,1752660677236,-892.348443,0.00022054,7]
[372486746,1752660677245,-156.478533,0.00022054,7]
[372486747,1752660677254,-1254.26,0.00022054,2]
[372486748,1752660677266,-156.478533,0.00022054,7]
[372486749,1752660677276,-4198.09,0.00022054,2]
[372486750,1752660677286,-460.0,0.00022054,2]
[372486751,1752660677297,-156.478533,0.00022054,7]
[372486752,1752660677306,-625.66,0.00022054,2]
[372486753,1752660677316,-2378.43,0.00022054,2]
[372486754,1752660677326,-540.63,0.00022054,5]
[372486755,1752660677336,-460.0,0.00022054,2]
[372486756,1752660677347,-460.0,0.00022054,2]
[372486757,1752660677358,-156.478533,0.00022054,7]
[372486758,1752660677368,-473.68,0.00022054,2]
[372486759,1752660677378,-156.478533,0.00022054,7]
[372486760,1752660677388,-156.478533,0.00022054,7]
[372486761,1752660677398,-700.23,0.00022054,2]
[372486762,1752660677408,-156.478533,0.00022054,7]
[372486763,1752660677418,-460.0,0.00022054,2]
[372486764,1752660677431,-691.15,0.00022054,2]
[372486765,1752660677440,-460.0,0.00022054,2]
[372486766,1752660677449,-460.0,0.00022054,2]
[372486767,1752660677459,-1393.57,0.00022054,2]
[372486768,1752660677468,-460.0,0.00022054,2]
[372486769,1752660677479,-4476.13,0.00022054,2]
[372486770,1752660677488,-1261.86,0.00022054,2]
[372486771,1752660677498,-892.348443,0.00022054,7]
[372486772,1752660677509,-500.28,0.00022054,2]
[372486773,1752660677519,-2896.16,0.00022054,2]
[372486774,1752660677528,-5646.54,0.00022054,2]
[372486775,1752660677537,-892.348443,0.00022054,7]
[372486776,1752660677547,-892.348443,0.00022054,7]
[372486777,1752660677556,-892.348443,0.00022054,7]
[372486778,1752660677566,-460.0,0.00022054,2]
[372486779,1752660677575,-929.99,0.00022054,2]
[372486780,1752660677585,-460.0,0.00022054,2]
[372486781,1752660677595,-6681.17,0.00022054,2]
[372486782,1752660677606,-775.59,0.00022054,2]
[372486783,1752660677616,-460.0,0.00022054,2]
[372486784,1752660677625,-460.0,0.00022054,2]
[372486785,1752660677634,-13200.65,0.00022054,2]
[372486786,1752660677644,-9908.62,0.00022054,2]
[372486787,1752660677654,-460.0,0.00022054,2]
[372486788,1752660677663,-562.85,0.00022054,2]
[372486789,1752660677672,-460.0,0.00022054,2]
[372486790,1752660677681,-541.37,0.00022054,2]
[372486791,1752660677691,-460.0,0.00022054,2]
[372486792,1752660677701,-460.0,0.00022054,2]
[372486793,1752660677710,-1269.14,0.00022054,2]
[372486794,1752660677719,-460.0,0.00022054,2]
[372486795,1752660677730,-526.07,0.00022054,2]
[372486796,1752660677740,-460.0,0.00022054,2]
[372486797,1752660677749,-1107.13,0.00022054,2]
[372486798,1752660677758,-460.0,0.00022054,2]
[372486799,1752660677767,-1344.96,0.00022054,2]
[372486800,1752660677776,-769.75,0.00022054,2]
[372486801,1752660677786,-197.35768917,0.00022054,2]
[372486802,1752660677795,-460.0,0.00022054,2]
[372486803,1752660677805,-499.36,0.00022054,2]
[372486804,1752660677814,-450.0,0.00022054,2]
[372486805,1752660677823,-460.0,0.00022054,2]
[372486806,1752660677833,-151.0,0.00022054,7]
[372486807,1752660677842,-151.0,0.00022054,7]
[372486808,1752660677851,-151.0,0.00022054,7]
[372486809,1752660677861,-151.0,0.00022054,7]
[372486810,1752660677870,-151.0,0.00022054,7]
[372486811,1752660677880,-2792.0,0.00022054,2]
[372486812,1752660677889,-196.041183,0.00022054,7]
[372486813,1752660677900,-4250.32,0.00022054,2]
[372486814,1752660677909,-151.0,0.00022054,7]
[372486815,1752660677920,-460.0,0.00022054,2]
[372486816,1752660677931,-3096.29,0.00022054,2]
[372486817,1752660677940,-460.0,0.00022054,2]
[372486818,1752660677950,-460.0,0.00022054,2]
[372486819,1752660677961,-675.72,0.00022054,2]
[372486820,1752660677971,-460.0,0.00022054,2]
[372486821,1752660677980,-869.65,0.00022054,2]
[372486822,1752660677990,-460.0,0.00022054,2]
[372486823,1752660678000,-151.0,0.00022054,7]
[372486824,1752660678009,-490.0,0.00022054,2]
[372486825,1752660678019,-1640.39,0.00022054,2]
[372486826,1752660678031,-460.0,0.00022054,2]
[372486827,1752660678041,-151.0,0.00022054,7]
[372486828,1752660678051,-3822.37,0.00022054,2]
[372486829,1752660678060,-235.689855,0.00022054,7]
[372486830,1752660678070,-3992.92,0.00022054,2]
[372486831,1752660678079,-4991.73,0.00022054,2]
[372486832,1752660678089,-6311.25,0.00022054,2]
[372486833,1752660678098,-535.28,0.00022054,2]
[372486834,1752660678108,-460.0,0.00022054,2]
[372486835,1752660678118,-7973.62,0.00022054,2]
[372486836,1752660678127,-460.0,0.00022054,2]
[372486837,1752660678137,-3106.99,0.00022054,2]
[372486838,1752660678146,-3447.45,0.00022054,2]
[372486839,1752660678155,-1150.44,0.00022054,2]
[372486840,1752660678165,-460.0,0.00022054,2]
[372486841,1752660678174,-1660.67,0.00022054,2]
[372486842,1752660678184,-504.37,0.00022054,2]
[372486843,1752660678193,-460.0,0.00022054,2]
[372486844,1752660678203,-460.0,0.00022054,2]
[372486845,1752660678213,-15318.85,0.00022054,2]
[372486846,1752660678223,-1056.51,0.00022054,2]
[372486847,1752660678233,-5593.09,0.00022054,2]
[372486848,1752660678243,-556.57184978,0.00022054,2]
[372486849,1752660678252,-1940.98,0.00022054,2]
[372486850,1752660678263,-313.54,0.00022054,2]
[372486851,1752660678273,-460.0,0.00022054,2]
[372486852,1752660678282,-644.83,0.00022054,2]
[372486853,1752660678292,-1164.25,0.00022054,2]
[372486854,1752660678301,-475.91,0.00022054,2]
[372486855,1752660678311,-523.57861449,0.00022054,2]
[372486856,1752660678320,-540.69,0.00022054,2]
[372486857,1752660678330,-2170.92,0.00022054,2]
[372486858,1752660678340,-460.0,0.00022054,2]
[372486859,1752660678350,-1162.58,0.00022054,2]
[372486860,1752660678359,-1712.6,0.00022054,2]
[372486861,1752660678369,-1612.05,0.00022054,2]
[372486862,1752660678379,-2824.95,0.00022054,2]
[372486863,1752660678389,-1832.63,0.00022054,2]
[372486864,1752660678398,-1323.9,0.00022054,2]
[372486865,1752660678408,-10200.93,0.00022054,2]
[372486866,1752660678419,-460.0,0.00022054,2]
[372486867,1752660678433,-3802.81,0.00022054,2]
[372486868,1752660678450,-1734.88,0.00022054,2]
[372486869,1752660678460,-239.679879,0.00022054,2]
[372486870,1752660678469,-461.66093109,0.00022054,2]
[372486871,1752660678480,-460.0,0.00022054,2]
[372486872,1752660678490,-728.49,0.00022054,2]
[372486873,1752660678499,-1795.92,0.00022054,2]
[372486874,1752660678509,-460.0,0.00022054,2]
[372486875,1752660678518,-4110.46751172,0.00022054,2]
[372486876,1752660679702,-1987.16248828,0.00022054,2]
[372486877,1752660679712,-460.0,0.00022054,2]
[372486878,1752660679721,-698.12,0.00022054,2]
[372486879,1752660679732,-2041.96,0.00022054,2]
[372486880,1752660679741,-1308.53,0.00022054,2]
[372486881,1752660679751,-460.0,0.00022054,2]
[372486882,1752660679760,-222.58554164,0.00022054,2]
[372486883,1752660679770,-5448.84,0.00022054,2]
[372486884,1752660679779,-526.5,0.00022054,2]
[372486885,1752660679789,-3363.04,0.00022054,2]
[372486886,1752660679799,-618.46,0.00022054,2]
[372486887,1752660679809,-2044.29,0.00022054,2]
[372486888,1752660679818,-1704.74,0.00022054,2]
[372486889,1752660679828,-5082.1,0.00022054,2]
[372486890,1752660679838,-460.0,0.00022054,2]
[372486891,1752660679847,-460.0,0.00022054,2]
[372486892,1752660679857,-460.0,0.00022054,2]
[372486893,1752660679866,-1284.66,0.00022054,2]
[372486894,1752660679876,-593.51,0.00022054,2]
[372486895,1752660679886,-39.04982783,0.00022054,2]
[372486896,1752660679987,-460.0,0.00021917,2]
[372486897,1752660679998,-420.95017217,0.00022054,2]
[372486898,1752660680008,-3015.1,0.00022054,2]
[372486899,1752660680018,-460.0,0.00022054,2]
[372486900,1752660680028,-3221.04,0.00022054,2]
[372486901,1752660680038,-9828.24,0.00022054,2]
[372486902,1752660680047,-1112.76,0.00022054,2]
[372486903,1752660680057,-460.0,0.00022054,2]
[372486904,1752660680067,-460.0,0.00022054,2]
[372486905,1752660680076,-1112.94,0.00022054,2]
[372486906,1752660680086,-3787.38,0.00022054,2]
[372486907,1752660680096,-460.0,0.00022054,2]
[372486908,1752660680107,-2899.59,0.00022054,2]
[372486909,1752660680118,-2702.29,0.00022054,2]
[372486910,1752660680128,-460.0,0.00022054,2]
[372486911,1752660680138,-1496.95,0.00022054,2]
[372486912,1752660680147,-1905.37,0.00022054,2]
[372486913,1752660680158,-6958.25,0.00022054,2]
[372486914,1752660680168,-1173.06,0.00022054,2]
[372486915,1752660680178,-1144.25,0.00022054,2]
[372486916,1752660680188,-2252.84,0.00022054,2]
[372486917,1752660680197,-7376.4,0.00022054,2]
[372486918,1752660680207,-460.0,0.00022054,2]
[372486919,1752660680217,-460.0,0.00022054,2]
[372486920,1752660680226,-460.0,0.00022054,2]
[372486921,1752660680236,-2064.55,0.00022054,2]
[372486922,1752660680246,-18056.54929757,0.00022054,2]
[372486923,1752660681608,-5000.0,0.00021817,2]
[372486924,1752660681618,-419.20451276,0.00021836,2]
[372486925,1752660681628,-500.46965151,0.00021917,2]
[372486926,1752660681638,-460.0,0.00021917,2]
[372486927,1752660681647,-476.42212776,0.00021917,2]
[372486928,1752660681657,-460.0,0.00021917,2]
[372486929,1752660681667,-314.033331,0.00021917,2]
[372486930,1752660681676,-460.0,0.00021917,2]
[372486931,1752660681686,-314.033331,0.00021917,2]
[372486932,1752660681696,-318.89103374,0.00021954,2]
[372486933,1752660681706,-5228.40070243,0.00022054,2]
[372486934,1752660681716,-517.16,0.00022054,2]
[372486935,1752660681726,-2323.92,0.00022054,2]
[372486936,1752660681735,-460.0,0.00022054,2]
[372486937,1752660681745,-5002.78,0.00022054,2]
[372486938,1752660681754,-460.0,0.00022054,2]
[372486939,1752660681764,-377.86,0.00022054,2]
[372486940,1752660681774,-460.0,0.00022054,2]
[372486941,1752660681784,-460.0,0.00022054,2]
[372486942,1752660681794,-6454.39,0.00022054,2]
[372486943,1752660681804,-1895.36,0.00022054,2]
[372486944,1752660681814,-841.8,0.00022054,2]
[372486945,1752660681824,-1099.43,0.00022054,2]
[372486946,1752660681833,-460.0,0.00022054,2]
[372486947,1752660681843,-2842.23,0.00022054,2]
[372486948,1752660681852,-6466.79,0.00022054,2]
[372486949,1752660681862,-151.0,0.00022054,7]
[372486950,1752660681872,-151.0,0.00022054,7]
[372486951,1752660681882,-163.26232966,0.00022054,2]
[372486952,1752660681892,-460.0,0.00022054,2]
[372486953,1752660681902,-151.0,0.00022054,7]
[372486954,1752660681911,-360.59188353,0.00022054,2]
[372486955,1752660681921,-151.0,0.00022054,7]
[372486956,1752660681931,-460.0,0.00022054,2]
[372486957,1752660681940,-460.0,0.00022054,2]
[372486958,1752660681950,-460.0,0.00022054,2]
[372486959,1752660681960,-460.0,0.00022054,2]
[372486960,1752660681969,-1967.34,0.00022054,2]
[372486961,1752660681979,-461.41048171,0.00022054,2]
[372486962,1752660681988,-151.0,0.00022054,7]
[372486963,1752660682002,-7593.72,0.00022054,2]
[372486964,1752660682019,-151.0,0.00022054,7]
[372486965,1752660682028,-151.0,0.00022054,7]
[372486966,1752660682038,-151.0,0.00022054,7]
[372486967,1752660682048,-637.083823,0.00022054,7]
[372486968,1752660682057,-637.083823,0.00022054,7]
[372486969,1752660682069,-637.083823,0.00022054,7]
[372486970,1752660682081,-460.0,0.00022054,2]
[372486971,1752660682094,-637.083823,0.00022054,7]
[372486972,1752660682105,-614.65,0.00022054,2]
[372486973,1752660682115,-1846.27,0.00022054,2]
[372486974,1752660682124,-460.0,0.00022054,2]
[372486975,1752660682134,-262.715112,0.00022054,7]
[372486976,1752660682144,-12906.6,0.00022054,2]
[372486977,1752660682153,-3400.3,0.00022054,2]
[372486978,1752660682163,-1491.55,0.00022054,2]
[372486979,1752660682172,-5691.55,0.00022054,2]
[372486980,1752660682182,-262.715112,0.00022054,7]
[372486981,1752660682191,-2635.84,0.00022054,2]
[372486982,1752660682201,-262.715112,0.00022054,7]
[372486983,1752660682210,-1452.46,0.00022054,2]
[372486984,1752660682220,-262.715112,0.00022054,7]
[372486985,1752660682229,-5907.75,0.00022054,2]
[372486986,1752660682239,-637.083823,0.00022054,7]
[372486987,1752660682248,-6769.49,0.00022054,2]
[372486988,1752660682258,-10414.08,0.00022054,2]
[372486989,1752660682267,-460.0,0.00022054,2]
[372486990,1752660682276,-637.083823,0.00022054,7]
[372486991,1752660682286,-637.083823,0.00022054,7]
[372486992,1752660682295,-461.48885521,0.00022054,2]
[372486993,1752660682305,-637.083823,0.00022054,7]
[372486994,1752660682316,-1678.8,0.00022054,2]
[372486995,1752660682325,-531.11,0.00022054,2]
[372486996,1752660682335,-538.0,0.00022054,2]
[372486997,1752660682345,-288.339864,0.00022054,7]
[372486998,1752660682354,-460.0,0.00022054,2]
[372486999,1752660682364,-3625.03,0.00022054,2]
[372487000,1752660682373,-1972.1,0.00022054,2]
[372487001,1752660682383,-262.715112,0.00022054,7]
[372487002,1752660682393,-262.715112,0.00022054,7]
[372487003,1752660682403,-262.715112,0.00022054,7]
[372487004,1752660682413,-460.0,0.00022054,2]
[372487005,1752660682423,-262.715112,0.00022054,7]
[372487006,1752660682437,-2009.29,0.00022054,2]
[372487007,1752660682447,-1874.08,0.00022054,2]
[372487008,1752660682457,-460.0,0.00022054,2]
[372487009,1752660682467,-460.0,0.00022054,2]
[372487010,1752660682479,-460.0,0.00022054,2]
[372487011,1752660682488,-468.62,0.00022054,2]
[372487012,1752660682498,-5410.31,0.00022054,2]
[372487013,1752660682510,-685.4,0.00022054,2]
[372487014,1752660682521,-35346.5,0.00022054,2]
[372487015,1752660682531,-5734.21,0.00022054,2]
[372487016,1752660682541,-543.12,0.00022054,2]
[372487017,1752660682550,-6456.25,0.00022054,2]
[372487018,1752660682559,-460.0,0.00022054,2]